Cogmind - Beta 16 @@@ ROGUE MODE // 2025.11.25 @ 15:01:20 Player: beans Result: Destroyed by S-10 Pest with Light Assault Rifle Performance ------------- Evolutions (0) 0 Regions Visited (2) 400 Robots Destroyed (22) 110 Value Destroyed (530) 530 Prototype IDs (0) 0 Alien Tech Used (0) 0 Bonus (0) 0 TOTAL SCORE: 1040 Bonus ------- None Cogmind --------- Core Integrity 0/250 Matter 278/300 Energy 86/100 System Corruption 0% Temperature Cool (0) Movement Core (50) Location -10/Mines Parts ------- > --- POWER (1) -------- (None) > --- PROPULSION (2) --- (None) > --- UTILITY (2) ------ Targeting Computer > --- WEAPON (2) ------- Makeshift Shrapnel Gun > --- INVENTORY (5) ---- Improved Aluminum Leg Peak State ------------ > --- POWER ------------ Light Nuclear Core > --- PROPULSION ------- Improved Aluminum Leg Improved Aluminum Leg > --- UTILITY ---------- Targeting Computer Medium Armor Plating > --- WEAPON ----------- Assault Rifle Assault Rifle > --- INVENTORY -------- Targeting Computer Assault Rifle [Rating: 12] Favorites ----------- Power Light Nuclear Core Engine Light Ion Engine Power Core Light Nuclear Core Propulsion Improved Aluminum Leg Leg Improved Aluminum Leg Utility Targeting Computer Processor Targeting Computer Protection Medium Armor Plating Weapon Assault Rifle Ballistic Gun Assault Rifle Build | -11 -10 -10 ------- Run | Yrd Mat Min Slots Evolved . | . . . Power . | . . . Propulsion . | . . . Utility . | . . . Weapon . | . . . Parts Attached 15 | 4 9 2 Power 2 | . 2 . Engine 1 | . 1 . Core 1 | . 1 . Reactor . | . . . Propulsion 4 | 2 2 . Treads . | . . . Leg 4 | 2 2 . Wheel . | . . . Hover . | . . . Flight . | . . . Utility 4 | . 3 1 Device . | . . . Storage . | . . . Processor 2 | . 1 1 Hackware . | . . . Protection 2 | . 2 . Artifact . | . . . Weapon 5 | 2 2 1 Energy Gun . | . . . Energy Cannon . | . . . Ballistic Gun 5 | 2 2 1 Ballistic Cannon . | . . . Launcher . | . . . Special Weapon . | . . . Impact Weapon . | . . . Slashing Weapon . | . . . Piercing Weapon . | . . . Special Melee Weapon . | . . . Unidentified Prototypes . | . . . Parts Lost 9 | . 3 6 Power 2 | . 1 1 Propulsion 1 | . . 1 Utility 2 | . . 2 Weapon 4 | . 2 2 Highest Loss Streak 6 | . 2 6 To Critical Strikes . | . . . Average Backups 1 | . 1 1 Power . | . . . Propulsion . | . . . Utility . | . . . Weapon . | . . . Tool/Special . | . . . Unused Backups . | . . . Power . | . . . Propulsion . | . . . Utility . | . . . Weapon . | . . . Tool/Special . | . . . Average Slot Usage (%) 82 | . 90 24 Engine 1 | . 1 3 Core 6 | . 6 . Leg 25 | . 28 7 Processor 11 | . 12 4 Protection 10 | . 12 1 Ballistic Gun 25 | . 27 8 Peak Build Rating 12 | 4 12 10 Average Rating 7 | 2 8 1 On Entrance 4 | . 4 10 Avg Prop Armor Cover (%) . | . . . Naked Turns 85 | . . 85 Heaviest Build 16 | 4 16 2 Greatest Support 26 | 20 26 3 Greatest Overweight (x) 1 | 1 1 . Average Overweight (x) . | . . . Largest Inventory Capacity 5 | 5 5 5 Average Capacity 5 | 5 5 5 Most Carried 3 | 2 3 3 Average Carried 1 | . 1 1 Final Capacity 5 | 5 5 5 Final Carried 1 | . 1 1 Class Distribution -------------------- 100% | Mutant Dominant Class ---------------- Mutant | -10/Materials Mutant | -10/Mines Resources | -11 -10 -10 ----------- Run | Yrd Mat Min Matter Collected 755 | 190 557 8 Remotely . | . . . Salvage Created 770 | 81 630 59 Parts 48 | 5 40 3 Haulers Intercepted 2 | . 2 . Recyclers Shooed 2 | . 2 . Parts Field Recycled . | . . . Retrieved Matter . | . . . Parts Self-Destructed . | . . . Prevented . | . . . Parts Restored . | . . . Kills | -11 -10 -10 ------- Run | Yrd Mat Min Combat Hostiles Destroyed 17 | . 14 3 Guns 17 | . 14 3 Classes Destroyed 6 | 2 4 . Tunneler 1 | 1 . . Hauler 2 | . 2 . Recycler 1 | 1 . . Watcher 1 | . 1 . Swarmer 5 | . 3 2 Grunt 12 | . 11 1 Best Kill Streak 5 | 1 5 2 Combat Bots Only 5 | . 5 2 Max Kills in Single Turn 2 | 1 2 1 Gunslinging 1 | . 1 . Exploded . | . . . Melee . | . . . Uniques/NPCs Destroyed . | . . . Combat | -11 -10 -10 -------- Run | Yrd Mat Min Hostile Shots Fired 136 | . 93 43 Missed 41 | . 25 16 Hits 95 | . 68 27 Projectile 95 | . 68 27 AOE 4 | . . 4 Damage Taken 1234 | . 766 468 Core 259 | . 70 189 Absorbed by Shields . | . . . Core Remaining (%) 100 | 100 . . Volleys Fired 80 | 5 68 7 Largest 2 | 2 2 2 Hottest 40 | 40 40 40 Shots Fired 156 | 10 134 12 Gun 156 | 10 134 12 Cannon . | . . . Launcher . | . . . Special . | . . . Kinetic 156 | 10 134 12 Thermal . | . . . Explosive . | . . . Electromagnetic . | . . . Robot Hit Streak 17 | 3 12 17 Robot Miss Streak 5 | 2 5 1 Penetration Max . | . . . Secondary Targets 2 | . 1 1 Max Gunslinging Chain 1 | . 1 1 Shots Hit Robots 95 | 6 77 12 Core Hits 40 | 3 32 5 Critical Kills . | . . . Critical Parts Destroyed 1 | . 1 . Critical Strikes 1 | . 1 . Destroy 1 | . 1 . Melee Attacks . | . . . Impact . | . . . Slashing . | . . . Piercing . | . . . Sneak Attacks . | . . . Combat Hostiles . | . . . Follow-up Attacks . | . . . Damage Inflicted 1233 | 86 996 151 Guns 1233 | 86 996 151 Cannons . | . . . Explosions . | . . . Melee . | . . . Ramming . | . . . Kinetic 1233 | 86 996 151 Thermal . | . . . Explosive . | . . . Electromagnetic . | . . . Impact . | . . . Slashing . | . . . Piercing . | . . . Highest Corruption . | . . . Average Corruption . | . . . Corruption Purged . | . . . Corruption Blocked . | . . . Overload Shots . | . . . Overflow Damage . | . . . Projectiles . | . . . Explosions . | . . . Melee . | . . . Knockbacks . | . . . Impact . | . . . Kinetic . | . . . Secondary . | . . . Self-Inflicted Damage . | . . . Shots . | . . . Rammed . | . . . Targets Rammed . | . . . Kicked . | . . . Crushed . | . . . Highest Temperature 20 | 1 20 9 Average Temperature 6 | 1 7 4 Received Heat Transfer 489 | . 396 93 Siege Activations . | . . . Martial Activations . | . . . Shielding Activations . | . . . Robots Disrupted . | . . . Combat Hostiles . | . . . Robots Corrupted . | . . . Combat Hostiles . | . . . Parts Fried . | . . . Impact Corruptions . | . . . Robots Melted . | . . . Combat Hostiles . | . . . Parts Melted . | . . . Heat Transferred . | . . . Parts Sabotaged . | . . . Parts Stolen . | . . . Parts Stripped . | . . . Power Chain Reactions . | . . . Alert | -11 -10 -10 ------- Run | Yrd Mat Min Maximum Alert Level . | . . . Low Security (%) 100 | 100 100 100 Level 1 . | . . . Level 2 . | . . . Level 3 . | . . . Level 4 . | . . . Level 5 . | . . . High Security . | . . . Max Security . | . . . Peak Influence 120 | 5 120 50 Initial 39 | . 3 39 Average 34 | 1 39 6 Influence Increases 487 | 10 407 70 Destroy 0b10 Robot/C 340 | . 280 60 Destroy 0b10 Robot/NC 25 | 10 15 . Destroy Leader 76 | . 66 10 Destroy Structure 1 | . 1 . Lose Combat Pursuer 45 | . 45 . Influence Decreases 437 | 5 310 122 Entered New Map 65 | . 2 63 Time Decay 283 | 5 278 . Lost Part 89 | . 30 59 Squads Dispatched 2 | . 2 . Investigation . | . . . Extermination . | . . . Reinforcement 2 | . 2 . Assault . | . . . Garrison . | . . . Intercept . | . . . Searches Triggered . | . . . Construction Impeded . | . . . Haulers Reinforced . | . . . Active Scanning Responses . | . . . Cargo Convoy Interrupts . | . . . Stealth | -11 -10 -10 --------- Run | Yrd Mat Min Distress Signals 1 | . 1 . Communications Jammed . | . . . Distress Signals . | . . . Times Spotted 40 | . 22 18 Peak Tracking Total 13 | . 6 13 Tactical Retreats 3 | . 1 2 Traps | -11 -10 -10 ------- Run | Yrd Mat Min Traps Triggered . | . . . Indirectly . | . . . Trap Hack Attempts . | . . . Triggered . | . . . Disarmed . | . . . Reprogrammed . | . . . Reused . | . . . Traps Extracted . | . . . Installed . | . . . Triggered . | . . . Machines | -11 -10 -10 ---------- Run | Yrd Mat Min Machines Disabled . | . . . Max in Single Turn . | . . . Machines Repaired . | . . . Machines Dismantled . | . . . Machines Sabotaged . | . . . Overloaded Fab Kills . | . . . Hacking | -11 -10 -10 --------- Run | Yrd Mat Min Machines Accessed 1 | . 1 . Terminals . | . . . Fabricators . | . . . Repair Stations . | . . . Recycling Units 1 | . 1 . Scanalyzers . | . . . Garrison Access . | . . . Total Hacks 4 | . 4 . Successful 2 | . 2 . Failed 2 | . 2 . Catastrophic . | . . . Database Lockouts . | . . . Manual . | . . . Terminals . | . . . Fabricators . | . . . Repair Stations . | . . . Recycling Units 4 | . 4 . Scanalyzers . | . . . Garrison Access . | . . . Terminal Hacks . | . . . Fabricator Hacks . | . . . Repair Station Hacks . | . . . Recycling Unit Hacks 2 | . 2 . Process 1 | . 1 . Report Inventory 1 | . 1 . Scanalyzer . | . . . Garrison Access Hacks . | . . . Unauthorized Hacks . | . . . Terminals . | . . . Fabricators . | . . . Repair Stations . | . . . Recycling Units . | . . . Scanalyzers . | . . . Garrison Access . | . . . Data Cores Recovered . | . . . Used . | . . . Hacking Detections 1 | . 1 . Full Trace Events 1 | . 1 . Feedback Events . | . . . Feedback Blocked . | . . . Robot Schematics Acquired . | . . . Robots Built . | . . . Authchips . | . . . Time . | . . . Total Robot Build Rating . | . . . Part Schematics Acquired . | . . . Parts Built . | . . . Authchips . | . . . Time . | . . . Total Part Build Rating . | . . . Part Studies Acquired . | . . . Parts Repaired . | . . . Time . | . . . Parts Recycled . | . . . Recycled Matter . | . . . Retrieved Matter . | . . . Retrieved Components . | . . . Parts Scanalyzed . | . . . Part Schematics Acquired . | . . . Parts Damaged . | . . . Bothacking | -11 -10 -10 ------------ Run | Yrd Mat Min Used RIF Installer . | . . . Robots Hacked . | . . . Non-combat . | . . . Combat . | . . . Robot Hacks Applied . | . . . Relay Couplers Released . | . . . Fabnet Peak Effective % . | . . . Robots Rewired . | . . . Allies Hacked . | . . . Hacks Repelled . | . . . Allies | -11 -10 -10 -------- Run | Yrd Mat Min Total Allies . | . . . Largest Group . | . . . Highest-Rated Group . | . . . Highest-Rated Ally . | . . . Total Orders . | . . . Ally Attacks . | . . . Total Damage . | . . . Kills . | . . . Allies Corrupted . | . . . Allies Melted . | . . . Intel | -11 -10 -10 ------- Run | Yrd Mat Min Active Infowar (turns) . | . . . Robot Analysis Total . | . . . Derelict Logs Recovered . | . . . Drone Launches . | . . . Drone Recoveries . | . . . Exploration | -11 -10 -10 ------------- Run | Yrd Mat Min Turns Passed 1013 | 54 852 107 Spaces Moved 698 | 32 519 147 Core 162 | 15 . 147 Treads . | . . . Legs 536 | 17 519 . Wheels . | . . . Hover . | . . . Flight . | . . . Fastest Speed 50 | 50 120 50 Average Speed 104 | 98 120 50 Slowest Speed 190 | 120 190 50 Overloaded Moves . | . . . Propulsion Burnouts . | . . . Robots Hopped . | . . . Potential Cave-ins . | . . . Cave-ins Triggered . | . . . Exploration Rate (%) 43 | 3 77 50 Regions Visited 2 Branch Regions 1 Pre-discovered Areas 1 | . . 1 Known Exits Taken . | . . . Unknown Exits Taken 2 | 1 1 . Scrap Searched . | . . . Spaces Dug . | . . . Terrain Destroyed . | . . . Melee . | . . . Projectile . | . . . AOE . | . . . Terrain Rammed . | . . . Walls Destroyed . | . . . Machines Disabled . | . . . Actions | -11 -10 -10 --------- Run | Yrd Mat Min Total 829 | 44 615 170 Wait 19 | . 7 12 Move 696 | 31 518 147 Hop . | . . . Pick Up 15 | 4 10 1 Fast Attach . | . . . Attach 15 | 4 9 2 Detach 1 | . . 1 Swap . | . . . Drop 3 | . 3 . Fire 80 | 5 68 7 Melee . | . . . Ram . | . . . Kick . | . . . Crush . | . . . Escape Stasis . | . . . Rewire . | . . . Trap . | . . . Miscellaneous . | . . . Route ------- -11/Scrapyard -10/Materials (discovered 4 exits: [*Mat x3] / [*Min]) -10/Mines History --------- Turn | Location | Event 3 | -11/Scrapyard | Discovered new exit (range 15) 55 | -11/Scrapyard | Entered Materials 167 | -10/Materials | Discovered new exit (range 13) 318 | -10/Materials | Build established: Mutant 438 | -10/Materials | Discovered new exit (range 5) 759 | -10/Materials | Discovered new exit (range 3) 895 | -10/Materials | Discovered new exit (range 9) 907 | -10/Materials | Entered Mines 908 | -10/Mines | Assembled infested the area 931 | -10/Mines | Learned location of Storage (-7) 954 | -10/Mines | Lost 6 parts (1p1n2u2w) 963 | -10/Mines | Core integrity fell below 50% 966 | -10/Mines | Core integrity fell below 20% 997 | -10/Mines | A weapon hastily lodged in a ceiling crevice suddenly fell to the ground 1014 | -10/Mines | Destroyed by S-10 Pest with Light Assault Rifle Last Messages --------------- Assault Rifle destroyed. A derelict emerges from the shadows: "Are any of them following you? I'm here trying to lose some heat after our second raid on Storage failed. Whatever you do stay away from that place, they've tightened security following our previous successful raids." World map updated: -7/Storage. 74-VNH(g): "We scattered so the Unaware couldn't effectively use their advantage in numbers, and I suggest you do the same." 74-VNH(g) slips back into the shadows. as-64754 destroyed. The unstable cave ceiling collapses. A Mak. Shrapnel Gun has been hastily shoved under some rubble with a note attached: "In case of Swarmers." Acquired Mak. Shrapnel Gun. S-10 Pest destroyed. Acquired 8 matter. Map ----- +----------------------------------------------------+ | ?????????????????????????????????????????????????? | | ?????????????????????????????????????????????????? | | ?????????????????????????????????????????????????? | | ?????????????????????????????????????????????????? | | ?????????????????????????????????????????????????? | | ?????????????????????????????????????????????????? | | ?????????????????????????????????????????????????? | | ?????????????????????????????????????????????????? | | ?????????????????????????????????????????????????? | | ?????????????????????????????????????????????????? | | ?????????????????????????????????????????????????? | | ?????????????????????????????????????????????????? | | ?????????????????????????????????????????????????? | | ?????????????????????????????????##??????????????? | | ????????????????????????????????? ##????????????? | | ????????????????????????????????? ##???????????? | | ????????????????????????????????? #???????????? | | ????????????????????????????????? ????????????? | | ?????????????????????????????????# ????????????? | | ?????????????????????????????????# ????????????? | | ????????????????????###??????????# #????????????? | | ???????????????????## #?????????# #????????????? | | ???????????????????# #####????# #????????????? | | ????????????????#### s ##???# ##???????????? | | ???????????# [%= #???# ##??????????? | | ???????????# ###@ ##### ##?????????? | | ?????????????###????????## #####?????? | | ?????????????????????????# ##????? | | ?????????????????????????## ####r u ##???? | | ??????????????????????????####?## #???? | | ??????????????????????????????## #???? | | ????????????????????????????### #???? | | ???????????????????????????## ## #???? | | ???????????????????????????# ##?# #??? | | ???????????????????????????# #???# #??? | | ???????????????????????????## #????? ???? | | ????????????????????????????## ##?????? ???? | | ?????????????????????????????## ####?????????? | | ???????????? ##??????????????# #?????????? | | ???????????? #??????????????# #?????????? | | ???????????? #??????????????# ## #?????????? | | ???????????? ##?????????????## ### #?????????? | | ???????????? ##?????????????####?# #?????????? | | ???????????? ##?????????????????# #?????????? | | ???????????? ##????????????????# ##????????? | | ??????????## #????????????????# ##???????? | | ??????##### #####???????????## #???????? | | ####### ### #??????????## #???????? | | # # # #?## ?????????## #???????? | | #????# ????????## ##???????? | +----------------------------------------------------+ Best States ------------- Heat Dissipation 25 Energy Generation 14 Energy Capacity 160 Matter Stores 300 Matter Capacity 300 Sight Range 16 Terrain Scan Density 10 Armor Coverage 225 Evasion (%) 55 Targeting Accuracy 5 Item Schematics ----------------- None Robot Schematics ------------------ None Fabricated ------------ Nothing Repaired ---------- Nothing Studied --------- None Alien Tech Used ----------------- None Achievements -------------- None Challenges ------------ None Game ------ Seed ReinforcedPlasmaConstruct Manual? 0 Play Time 00:07:35 Cumulative 218.3 hours Start 2025.11.25 @ 11:21:04 End 2025.11.25 @ 15:01:20 Sessions 1 Manual Loads 0 Difficulty Rogue Special Mode None Game No. 618 Rogue 617 Adventurer 1 Explorer 0 Win Type - Total 0 Types 0/0/0/0/0/0/0/0/0/0 Lore% 65 Gallery% 62 Achievement% 38 Wizard Run 0 Options --------- Layout 1 ASCII 0 Keyboard 0 Movement Mouse Keybinds 0 Fullscreen 1 Font 24/Smallcaps Map View 50x35 Zoom Use 0% Tactical HUD 0 Map Filters NONE Filters NONE Steam 1 RUN: fc357b4c-a010-481c-a4ea-1d37c2b97048